bitfinex/quotes_ETHUSD_20220202
["timestamp","ask_amount","ask_price","bid_price","bid_amount"]
[1643803281714,0.28745688,2773.5,2772.9,0.127988]
[1643803282111,0.28745688,2773.5,2772.8,2.46335]
[1643803282313,2.25690024,2773.5,2772.8,2.28308]
[1643803282615,2.25690024,2773.5,2772.8,0.1802]
[1643803282616,0.46765688,2773.5,2772.8,0.1802]
[1643803282825,0.46765688,2773.5,2772.5,2.10827]
[1643803283013,0.71181702,2773.2,2772.5,0.90167]
[1643803283817,0.71181702,2773.2,2772.5,1.20167]
[1643803284028,0.71181702,2773.2,2772.5,0.90167]
[1643803284263,0.1802,2773.1,2772.5,0.90167]
[1643803285357,0.1802,2773.1,2772.4,0.25]
[1643803285556,0.1802,2773.1,2772.5,0.67421158]
[1643803285957,0.28745688,2773.5,2772.5,0.97421158]
[1643803285958,0.1802,2773.4,2772.5,0.97421158]
[1643803286385,0.1802,2773.4,2772.4,0.25]
[1643803286767,3.25393608,2773.3,2772.1,3.5038]
[1643803286981,0.1802,2773.4,2772.1,3.5038]
[1643803287164,0.1802,2773.2,2772.1,3.5038]
[1643803287363,0.72730572,2773.0,2772.1,3.5038]
[1643803288211,0.1802,2773.4,2772.1,0.1802]
[1643803288413,1.44187111,2773.3,2772.1,0.1802]
[1643803288610,0.1802,2773.2,2772.1,0.1802]
[1643803289011,0.1802,2773.4,2772.1,0.1802]
[1643803289212,0.74724454,2772.9,2772.1,0.1802]
[1643803291112,1.4053,2773.2,2772.1,0.1802]
[1643803291315,1.44550842,2773.1,2772.1,0.1802]
[1643803292163,0.75130592,2773.0,2772.1,0.1802]
[1643803292359,1.44775565,2772.9,2772.1,0.1802]
[1643803293468,3.13360878,2772.9,2772.1,0.1802]
[1643803293769,0.75130592,2773.0,2772.1,0.1802]
[1643803293770,1.44775565,2772.8,2772.1,0.1802]
[1643803293967,1.44775565,2772.7,2772.1,0.1802]
[1643803294183,1.44775565,2772.6,2772.1,0.1802]
[1643803294374,0.71418223,2772.5,2772.1,0.1802]
[1643803295167,0.1802,2772.9,2772.1,0.1802]
[1643803295370,1.90557305,2773.2,2771.9,0.1802]
[1643803295371,1.45274814,2772.8,2771.9,0.1802]
[1643803295640,1.45274814,2772.7,2772.0,0.07651426]
[1643803295813,1.45274814,2772.6,2772.0,0.07651426]
[1643803296011,1.45274814,2772.5,2771.8,2.16393]
[1643803296210,0.1802,2772.9,2771.9,0.77696189]
[1643803296211,0.76070848,2772.7,2771.9,0.77696189]
[1643803296415,0.76070848,2772.7,2772.0,0.07651488]
[1643803296416,1.45274814,2772.6,2772.0,0.07651488]
[1643803296813,1.45456575,2772.5,2772.0,0.07651488]
[1643803297114,0.1802,2772.9,2772.0,0.07651488]
[1643803297321,1.45458167,2772.8,2772.0,0.07651488]
[1643803297529,0.1802,2772.7,2772.0,0.07651488]
[1643803297721,1.45458167,2772.6,2772.0,0.07651488]
[1643803298427,1.45458167,2772.6,2772.1,0.07651488]
[1643803298620,1.45458167,2772.6,2771.8,0.18027]
[1643803298819,1.45458167,2772.6,2771.9,0.07651712]
[1643803299862,1.45458167,2772.6,2772.0,0.07651712]
[1643803300062,0.78937245,2772.3,2771.7,0.4302]
[1643803300265,0.78937245,2772.3,2771.8,0.07651862]
[1643803300662,0.78937245,2772.3,2771.9,0.07651862]
[1643803300868,3.45564718,2772.2,2771.4,0.1802]
[1643803301067,3.45564718,2772.2,2770.6,1.78265898]
[1643803301068,2.15884718,2772.1,2770.7,0.1802]
[1643803301281,0.80572288,2771.4,2770.8,3.57653515]
[1643803301470,0.70921892,2771.9,2770.9,0.07653515]
[1643803301672,0.70921892,2771.9,2770.7,0.1804]
[1643803301673,1.45528846,2771.8,2771.0,0.07653515]
[1643803301867,1.45528846,2771.8,2771.1,0.07653515]
[1643803301868,0.18754076,2771.7,2771.1,0.07653515]
[1643803302068,1.45528846,2771.6,2770.7,0.1804]
[1643803302268,1.45528846,2771.6,2770.8,0.07654178]
[1643803302501,0.67785041,2771.7,2770.9,0.90123792]
[1643803302674,1.3119,2771.8,2771.0,0.07654178]
[1643803302872,1.45545819,2771.7,2771.0,0.07654178]
[1643803303127,3.41956373,2771.7,2771.0,0.07654178]
[1643803303425,1.63585819,2771.6,2771.1,0.0765412]
[1643803303719,3.56332568,2771.5,2770.7,0.1804]
[1643803303919,3.53695598,2771.4,2770.8,0.0765429]
[1643803304123,1.92567567,2771.3,2770.9,0.0765429]
[1643803304320,0.1804,2771.7,2771.0,0.0765429]
[1643803304321,0.8235756,2771.2,2771.0,0.0765429]
[1643803304523,0.8235756,2771.2,2770.5,0.1804]
[1643803304721,0.8235756,2771.2,2770.6,0.07654578]
[1643803305921,1.94521873,2771.1,2770.6,0.07654578]
[1643803306123,0.8235756,2771.2,2770.6,0.07654578]
[1643803306755,2.80656593,2771.7,2770.6,0.07654578]
[1643803306962,1.45250416,2771.6,2770.6,0.07654578]
[1643803307159,0.1804,2771.5,2770.6,0.07654578]
[1643803307390,0.1804,2771.7,2770.8,0.90219]
[1643803307562,0.1804,2771.7,2770.9,0.07654578]
[1643803307761,0.81136874,2771.4,2770.9,0.07654578]
[1643803310364,0.1804,2771.7,2770.9,0.07654578]
[1643803311728,1.3119,2771.8,2770.9,0.25694578]
[1643803311924,1.3119,2771.8,2771.0,0.07654578]
[1643803312734,1.3119,2771.8,2771.0,0.51159652]
[1643803313033,0.92579737,2772.3,2771.4,0.76222423]
[1643803313243,0.92579737,2772.3,2771.5,0.1802]
[1643803313648,1.4622796,2772.2,2771.4,0.1802]
[1643803314055,1.4622796,2772.2,2771.4,1.98395]
[1643803314684,1.7622796,2772.2,2771.2,0.1802]
[1643803314880,1.6424796,2772.1,2771.2,0.1802]
[1643803315079,1.6424796,2772.1,2771.1,0.1802]
[1643803315080,1.4622796,2772.0,2771.1,0.1802]
[1643803315280,1.4622796,2772.0,2771.0,0.1804]
[1643803315880,0.92135549,2771.5,2771.0,0.1804]
[1643803316085,0.92135549,2771.5,2771.1,0.09844726]
[1643803316384,0.92135549,2771.5,2771.0,0.1804]
[1643803319740,0.92135549,2771.5,2770.9,1.80417]
[1643803319925,0.92135549,2771.5,2771.0,0.09843043]
[1643803320628,0.92015409,2771.5,2770.7,0.1804]
[1643803320829,0.92015409,2771.5,2770.8,0.08741495]
[1643803321227,0.92015409,2771.5,2770.9,0.08741495]
[1643803321432,0.92015409,2771.5,2771.0,0.08741495]
[1643803321632,0.92015409,2771.5,2770.6,0.1804]
[1643803321855,0.92015409,2771.5,2770.7,0.08739878]
[1643803322057,0.92015409,2771.5,2770.8,0.1804]
[1643803322257,0.92015409,2771.5,2770.9,0.08739878]
[1643803322656,0.92015409,2771.5,2771.0,0.08739878]
[1643803322858,0.92015409,2771.5,2770.6,0.1804]
[1643803323072,0.92015409,2771.5,2770.7,0.08738044]
[1643803323266,0.92015409,2771.5,2770.8,0.1804]
[1643803323575,0.92015409,2771.5,2770.9,0.08738044]
[1643803324862,9.321263,2772.1,2770.9,0.08738044]
[1643803325065,1.42848603,2772.0,2770.9,0.26778044]
[1643803325264,0.1804,2771.9,2771.0,0.08738044]
[1643803325514,1.42848603,2771.8,2771.0,0.08738044]
[1643803325719,1.72848603,2771.8,2771.0,0.08738044]
[1643803325917,0.1804,2772.0,2771.1,0.8525955]
[1643803325918,1.42848603,2771.7,2771.1,0.8525955]
[1643803326124,0.1804,2772.0,2771.2,2.11145305]
[1643803326342,1.2366,2772.2,2771.3,0.08738044]
[1643803326530,1.2366,2772.2,2771.4,0.79058044]
[1643803326828,1.2366,2772.2,2771.5,2.88806357]
[1643803327122,1.2366,2772.2,2771.8,0.85540077]
[1643803327316,4.81339427,2772.7,2771.9,0.08738044]
[1643803327524,1.44693697,2772.6,2771.8,2.65901077]
[1643803327725,1.44693697,2772.6,2771.9,0.07652554]
[1643803329558,1.44693697,2772.6,2772.0,0.9018]
[1643803333607,1.44693697,2772.6,2771.9,0.523]
[1643803333808,1.44693697,2772.6,2772.0,0.07652713]
[1643803334018,0.91362382,2772.1,2771.8,1.98381]
[1643803334208,0.91362382,2772.1,2771.6,1.80376]
[1643803334209,1.44693697,2772.0,2771.7,0.1802]
[1643803335008,2.0,2771.9,2771.7,0.1802]
[1643803335215,1.44693697,2771.8,2771.3,0.1802]
[1643803335422,1.44693697,2771.7,2771.4,0.0765419]
[1643803335610,1.44693697,2771.6,2771.1,0.1804]
[1643803335809,1.44693697,2771.6,2770.9,1.08261]
[1643803336008,0.88542088,2771.5,2771.0,0.0765434]
[1643803337059,0.1804,2771.9,2771.0,0.0765434]
[1643803337267,1.45016956,2771.8,2771.0,0.0765434]
[1643803337471,1.94782939,2771.7,2771.0,0.0765434]
[1643803337673,1.45016956,2771.6,2771.0,0.0765434]
[1643803337865,1.88475767,2771.5,2771.0,0.0765434]
[1643803338063,0.1804,2772.1,2771.0,0.0765434]
[1643803338064,2.71058867,2772.1,2771.0,0.0765434]
[1643803338266,1.45057126,2772.0,2771.0,0.0765434]
[1643803338465,2.3556706,2771.9,2771.0,0.0765434]
[1643803338667,0.94170004,2771.7,2771.0,0.0765434]
[1643803338867,4.1903014,2771.6,2770.6,6.7041]
[1643803339075,1.45057126,2771.5,2770.7,0.07655686]
[1643803339292,2.44613426,2771.4,2770.7,0.07655686]
[1643803339482,1.45057126,2771.3,2770.7,0.07655686]
[1643803339663,2.09090909,2771.2,2770.8,0.07655686]
[1643803339870,0.84818717,2770.9,2770.5,0.07655686]
[1643803340165,0.84818717,2770.9,2770.6,0.07655678]
[1643803340364,0.84818717,2770.9,2770.7,0.07655678]
[1643803340616,0.84818717,2770.9,2770.8,0.07655678]
[1643803341216,0.84818717,2770.9,2770.4,0.07655678]
[1643803341418,0.84818717,2770.9,2770.8,0.07655678]
[1643803341630,0.84818717,2770.9,2770.5,0.07655678]
[1643803341824,0.84818717,2770.9,2770.6,0.07655678]
[1643803342020,0.84818717,2770.9,2770.7,0.07655678]
[1643803342224,0.84818717,2770.9,2770.8,0.07655678]
[1643803342459,0.84818717,2770.9,2770.3,0.07655678]
[1643803344661,0.76336846,2770.9,2770.3,0.07655678]
[1643803346772,2.48883585,2771.3,2770.4,0.90237]
[1643803346773,2.20127475,2771.3,2770.4,0.90237]
[1643803347070,2.20127475,2771.3,2770.5,0.07655678]
[1643803347071,1.4533953,2771.2,2770.5,0.07655678]
[1643803347365,1.4533953,2771.2,2770.5,3.78019951]
[1643803347581,0.2622,2771.8,2770.5,3.78019951]
[1643803347582,0.1804,2771.7,2770.6,0.7480866]
[1643803347768,0.2622,2771.8,2771.0,0.67469694]
[1643803347769,1.45993018,2771.6,2771.0,0.67469694]
[1643803348009,1.45993018,2771.5,2771.1,0.97867678]
[1643803348211,1.12778202,2771.8,2771.2,0.07655678]
[1643803348426,1.46022965,2771.7,2771.2,0.07655678]
[1643803349111,0.14609892,2772.4,2771.3,6.5]
[1643803349314,0.1,2773.0,2772.3,0.01258605]
[1643803349524,0.1,2773.0,2772.9,0.01270603]
[1643803350313,0.1,2773.0,2772.7,2.32609]
[1643803350911,0.1,2773.0,2772.8,0.90155]
[1643803351763,0.1,2773.0,2772.8,2.80079385]
[1643803351959,0.1,2773.0,2772.8,3.70230385]
[1643803352269,0.1,2773.0,2772.8,4.61751969]
[1643803352458,0.1,2773.0,2772.8,2.71827584]
[1643803354566,0.1,2773.0,2772.9,0.9015]
[1643803354770,0.1,2773.0,2772.9,2.76358178]
[1643803354967,0.1,2773.0,2772.9,0.9015]
[1643803355166,0.1,2773.0,2772.8,2.11676584]
[1643803355720,0.1,2773.0,2772.8,1.81676584]
[1643803357412,0.1,2773.0,2772.9,1.87026022]
[1643803357610,0.1,2773.0,2772.8,1.81676584]
[1643803360261,0.1,2773.0,2772.8,0.90155]
[1643803362166,0.1,2773.0,2772.9,1.88897058]
[1643803362686,0.1,2773.0,2772.8,0.90155]
[1643803362859,0.1,2773.0,2772.8,0.80155]
[1643803364812,0.07384662,2773.0,2772.8,0.80155]
[1643803365632,0.07384662,2773.0,2772.8,1.10155]
[1643803365815,0.07384662,2773.0,2772.7,1.80309]
[1643803366038,0.07384662,2773.0,2772.1,4.65867278]
[1643803366039,0.07384662,2773.0,2772.3,0.7032]
[1643803366222,0.07384662,2773.0,2772.3,0.523]
[1643803366877,0.99631385,2773.0,2772.3,0.523]
[1643803367273,1.29631385,2773.0,2772.3,0.523]
[1643803369078,0.99631385,2773.0,2772.3,0.523]
[1643803369292,0.99631385,2773.0,2772.2,0.90178]
[1643803370388,0.07384662,2773.0,2772.2,0.90178]
[1643803370611,0.07384662,2773.0,2772.3,1.8924751]
[1643803371009,0.07384662,2773.0,2772.5,0.90164]
[1643803371214,0.07384662,2773.0,2772.6,1.95092838]
[1643803371833,0.07384662,2773.0,2772.6,2.13112838]
[1643803372313,0.07384662,2773.0,2772.9,0.72668667]
[1643803372830,0.07384662,2773.0,2772.9,2.75746204]
[1643803373516,0.07384662,2773.0,2772.9,0.72668667]
[1643803381118,0.07384662,2773.0,2772.9,2.99954912]
[1643803381323,0.07384662,2773.0,2772.9,8.77391504]
[1643803381526,4.662e-05,2773.0,2772.9,2.64722837]
[1643803381968,4.662e-05,2773.0,2772.9,0.67436592]
[1643803382168,4.662e-05,2773.0,2772.9,0.37436592]
[1643803382368,4.662e-05,2773.0,2772.9,4.87436592]
[1643803382566,4.662e-05,2773.0,2772.9,5.05463592]
[1643803382971,4.662e-05,2773.0,2772.9,7.67850826]
[1643803383168,4.662e-05,2773.0,2772.9,15.22714165]
[1643803383390,0.4924382,2773.6,2773.0,6.35]
[1643803383575,0.4924382,2773.6,2773.2,1.80252]
[1643803383768,0.4924382,2773.6,2773.3,2.91371038]
[1643803383970,0.4924382,2773.6,2773.5,0.18027]
[1643803384170,0.4924382,2773.6,2773.5,2.83694983]
[1643803384388,0.4924382,2773.6,2773.5,3.28137852]
[1643803384770,0.36508127,2773.6,2773.5,3.28137852]
[1643803385171,0.36508127,2773.6,2773.5,4.18262852]
[1643803385611,0.36508127,2773.6,2773.5,5.13315498]
[1643803386820,0.36508127,2773.6,2773.5,4.95288498]
[1643803387831,0.36508127,2773.6,2773.5,4.68872629]
[1643803388118,0.36508127,2773.6,2773.5,3.78747629]
[1643803388722,0.36508127,2773.6,2773.5,3.60720629]
[1643803389975,0.68475783,2774.8,2773.6,5.5]
[1643803390173,2.29047381,2775.3,2773.8,0.90117]
[1643803390174,1.32000676,2774.7,2773.8,0.90117]
[1643803390400,1.32000676,2774.6,2773.9,2.523]
[1643803390592,0.68475783,2775.4,2774.0,0.37205832]
[1643803390775,1.32068133,2775.3,2774.1,2.71485832]
[1643803390977,1.32068133,2775.2,2774.3,0.01290484]
[1643803391172,0.68475783,2775.6,2774.3,0.01290484]
[1643803391173,1.32068133,2775.1,2774.4,0.88337]
[1643803391378,1.32068133,2775.0,2774.4,0.7031]
[1643803391580,1.32068133,2774.9,2774.4,0.523]
[1643803391786,1.93000554,2775.7,2774.4,0.7032]
[1643803391787,0.68475783,2775.4,2774.4,0.7032]
[1643803392071,1.32068133,2775.3,2774.4,0.523]
[1643803392281,1.32068133,2775.2,2774.5,0.89881009]
[1643803392572,1.32068133,2775.1,2774.5,1.42181009]
[1643803392778,1.32068133,2775.1,2774.6,0.90095]
[1643803394927,1.32068133,2775.1,2774.3,2.06080306]
[1643803395132,2.00543916,2775.1,2774.3,0.1801]
[1643803395327,2.00543916,2775.0,2774.3,0.1801]
[1643803395537,1.32068133,2774.9,2774.3,0.1801]
[1643803395725,1.32068133,2774.8,2774.3,0.1801]
[1643803395928,1.32068133,2774.7,2774.3,1.13426541]
[1643803396126,1.32068133,2774.6,2774.3,1.85520541]
[1643803396339,1.32068133,2774.5,2774.3,1.85520541]
[1643803396543,1.32068133,2774.4,2774.3,1.85520541]
[1643803396765,1.32068133,2775.1,2774.3,1.85520541]
[1643803396964,1.32373365,2775.0,2774.3,0.90104]
[1643803397165,1.32373365,2774.9,2774.1,3.65296719]
[1643803397363,0.68475783,2775.1,2774.1,3.65296719]
[1643803397364,1.32373365,2774.8,2774.1,3.65296719]
[1643803397576,1.32373365,2774.7,2774.1,1.80209]
[1643803397772,1.32373365,2774.6,2774.2,2.1683226]
[1643803398077,1.32373365,2774.5,2774.2,2.1683226]
[1643803398468,0.68475783,2775.2,2774.3,0.38345848]
[1643803398667,0.68475783,2775.2,2774.5,0.90094]
[1643803398884,2.00330837,2775.2,2774.5,0.90094]
[1643803399073,1.31855054,2775.1,2774.5,0.90094]
[1643803399267,1.31855054,2775.0,2774.6,0.93164354]
[1643803399486,0.68475783,2775.3,2774.6,2.79799868]
[1643803400378,2.00330837,2775.3,2774.6,2.79799868]
[1643803400624,1.31855054,2775.2,2774.6,2.79799868]
[1643803400824,1.31855054,2775.1,2774.6,2.79799868]
[1643803401024,1.31855054,2775.0,2774.6,2.79799868]
[1643803401227,1.31855054,2774.9,2774.5,0.90094]
[1643803401426,1.31855054,2774.8,2774.5,0.90094]
[1643803401631,1.31855054,2774.7,2774.5,2.77325329]
[1643803401824,0.68475783,2775.4,2774.5,2.76072062]
[1643803402025,0.68475783,2775.4,2774.5,0.90094]
[1643803402231,0.68475783,2775.4,2774.5,2.77479236]
[1643803402455,0.68475783,2775.4,2774.5,0.90094]
[1643803402631,1.60391797,2775.4,2774.6,0.84856445]
[1643803402848,1.31780512,2775.3,2774.6,0.84856445]
[1643803403436,1.31780512,2775.3,2774.7,1.92137404]
[1643803403641,1.31780512,2775.2,2774.8,0.90089]
[1643803403839,1.31780512,2775.1,2774.8,0.90089]
[1643803404044,1.31780512,2775.0,2774.8,0.90089]
[1643803404266,1.31780512,2774.9,2774.8,0.90089]
[1643803404669,0.68475783,2775.5,2774.8,0.90089]
[1643803404875,0.68475783,2775.5,2774.7,1.86935603]
[1643803404876,0.68475783,2775.5,2774.7,1.87031539]
[1643803405065,0.68475783,2775.5,2774.6,0.84856445]
[1643803405267,2.00256295,2775.6,2774.6,1.02866445]
[1643803405468,1.31780512,2775.5,2774.6,1.02866445]
[1643803405665,1.31780512,2775.4,2774.6,1.02866445]
[1643803405866,1.31780512,2775.3,2774.8,0.90089]
[1643803406076,1.31780512,2775.2,2774.8,0.90089]
[1643803406269,1.31780512,2775.1,2774.8,0.90089]
[1643803406467,1.31780512,2775.0,2774.8,0.90089]
[1643803406669,1.31780512,2774.9,2774.8,0.90089]
[1643803407267,1.31780512,2774.9,2774.6,0.84856445]
[1643803407468,1.31780512,2774.8,2774.6,0.84856445]
[1643803407689,1.31780512,2774.7,2774.6,0.84856445]
[1643803408818,1.31780512,2774.7,2774.4,1.98205]
[1643803409018,0.68475783,2775.3,2774.4,1.98205]
[1643803409218,1.13708437,2775.2,2774.4,1.80185]
[1643803409427,0.68475783,2775.3,2774.4,1.80185]
[1643803410027,0.68475783,2775.3,2774.4,2.73536897]
[1643803411123,0.68475783,2775.3,2774.3,0.1801]
[1643803411322,0.68475783,2775.2,2774.2,0.1801]
[1643803411529,0.68475783,2774.9,2774.1,0.25]
[1643803411772,0.68475783,2774.9,2773.8,6.55229994]
[1643803411979,0.68475783,2774.8,2773.8,6.55229994]
[1643803412168,0.73064068,2774.6,2773.8,4.38165544]
[1643803412366,0.73064068,2774.6,2773.8,1.33465544]
[1643803413971,0.73064068,2774.6,2773.8,0.45659994]
[1643803415287,0.68475783,2774.9,2773.8,1.39642981]
[1643803415512,0.68475783,2774.8,2773.8,1.39642981]
[1643803415913,0.68475783,2774.8,2773.9,2.78480243]
[1643803416117,0.68475783,2774.9,2773.9,2.78480243]
[1643803416315,0.68475783,2775.0,2774.4,0.72806513]
[1643803416720,1.1966,2775.2,2774.2,2.20885337]
[1643803416721,0.68475783,2775.1,2774.2,2.20885337]
[1643803416921,0.68475783,2775.1,2774.2,0.1801]
[1643803417334,0.68475783,2775.1,2774.4,0.90104]
[1643803418546,0.68475783,2775.0,2774.4,0.90104]
[1643803419709,0.68475783,2775.2,2774.5,1.89399624]
[1643803419898,0.68475783,2775.1,2774.4,0.90104]
[1643803420497,0.68475783,2775.2,2774.5,1.84490238]
[1643803420706,0.68475783,2775.3,2774.5,1.84490238]
[1643803420898,0.68475783,2775.4,2774.5,1.84490238]
[1643803421099,0.68475783,2775.4,2774.7,0.4084759]
[1643803421304,0.68475783,2775.4,2774.8,0.74276019]
[1643803421501,0.68475783,2775.3,2774.8,0.74276019]
[1643803421702,0.68475783,2775.4,2774.6,0.90095]
[1643803422504,0.68475783,2775.3,2774.6,0.90095]
[1643803422717,0.68475783,2775.3,2774.7,1.93973815]
[1643803423936,0.68475783,2775.2,2774.8,0.7356102]
[1643803424122,0.68475783,2775.2,2774.8,1.11758377]
[1643803424318,0.68475783,2775.2,2774.8,0.7356102]
[1643803424928,0.68475783,2775.2,2774.6,0.90095]
[1643803425121,0.68475783,2775.2,2774.6,1.8035007]
[1643803425321,0.68475783,2775.2,2774.8,0.44086843]
[1643803426133,0.68475783,2775.2,2774.6,1.8035007]
[1643803426422,0.68475783,2775.2,2774.6,0.90095]
[1643803426639,0.68475783,2775.1,2774.6,0.90095]
[1643803427107,2.2409345,2775.7,2775.0,0.01242676]
[1643803427108,0.91301044,2775.7,2775.0,0.01242676]
[1643803427284,1.55230213,2776.1,2775.1,0.70327]
[1643803427485,0.91301044,2776.4,2775.2,0.1801]
[1643803427682,0.04092649,2775.9,2775.3,0.523]
[1643803428087,5.1894,2776.5,2775.3,0.523]
[1643803428088,0.04035807,2775.8,2775.3,0.523]
[1643803428480,0.79333703,2776.0,2775.3,0.523]
[1643803428683,0.79333703,2776.0,2775.5,0.90071]
[1643803429297,1.25191124,2775.9,2775.6,0.26592128]
[1643803429488,1.25191124,2775.9,2775.5,0.90071]
[1643803429693,0.04035807,2775.8,2775.5,0.90071]
[1643803429886,1.25191124,2775.7,2775.5,0.90071]
[1643803430289,0.04035807,2775.8,2775.5,0.90071]
[1643803430529,0.04035807,2775.8,2775.6,2.15046414]
[1643803430730,0.04035807,2775.8,2775.7,2.28893542]
[1643803431329,0.04035807,2775.8,2775.7,0.26567499]
[1643803431528,0.04035807,2775.8,2775.6,0.26567499]
[1643803431827,0.04035807,2775.8,2775.5,2.85463231]
[1643803432036,0.04035807,2775.8,2775.6,0.27477789]
[1643803432427,0.04035807,2775.8,2775.5,0.90071]
[1643803433844,0.04035807,2775.8,2775.6,1.89820359]
[1643803434041,0.04035807,2775.8,2775.2,2.62224089]
[1643803434272,0.04035807,2775.8,2775.3,0.27467389]
[1643803435275,0.04035807,2775.8,2775.4,1.88020833]
[1643803435470,0.04035807,2775.8,2775.5,0.27426101]
[1643803435770,0.04035807,2775.8,2775.6,1.90680529]
[1643803435973,0.04035807,2775.8,2775.7,3.99702538]
[1643803436377,0.04035807,2775.8,2775.7,0.79702538]
[1643803436977,0.04035807,2775.8,2775.7,1.42172411]
[1643803437186,0.04035807,2775.8,2775.7,2.26529411]
[1643803438037,0.04035807,2775.8,2775.7,4.46746709]
[1643803438625,0.04035807,2775.8,2775.7,4.19344171]
[1643803439423,0.04035807,2775.8,2775.7,2.72517298]
[1643803441025,0.04035807,2775.8,2775.7,4.00152467]
[1643803442371,0.04035807,2775.8,2775.7,1.79935169]
[1643803443384,0.04035807,2775.8,2775.7,0.523]
[1643803444385,0.04035807,2775.8,2775.6,0.1801]
[1643803444576,0.04035807,2775.8,2775.6,0.50653533]
[1643803444797,0.04035807,2775.8,2775.7,1.86927621]
[1643803444975,0.02559185,2775.8,2775.7,1.86927621]
[1643803445627,0.02559185,2775.8,2775.7,2.04954621]
[1643803447937,0.02559185,2775.8,2775.7,2.57254621]
[1643803448134,5.0145382,2776.9,2776.2,0.90037]
[1643803448328,1.25779343,2776.8,2776.2,1.42337]
[1643803448527,1.25779343,2776.8,2776.3,1.91980046]
[1643803448729,1.25779343,2776.8,2776.2,1.42337]
[1643803449127,0.86309013,2776.6,2776.2,2.32362]
[1643803449390,0.86309013,2776.6,2776.2,1.80062]
[1643803449570,1.1106382,2776.9,2776.2,1.80062]
[1643803449771,1.257763,2776.8,2776.2,1.80062]
[1643803450570,1.257763,2776.8,2776.2,4.62928043]
[1643803450780,0.03054622,2776.5,2776.2,4.62928043]
[1643803452784,0.03054622,2776.5,2776.2,1.80062]
[1643803453027,0.03054622,2776.5,2776.2,3.65721481]
[1643803453232,0.03054622,2776.5,2776.2,1.80062]
[1643803454031,0.03054622,2776.5,2776.2,3.68386684]
[1643803454634,1.1106382,2776.9,2776.5,3.95]
[1643803454635,0.24470211,2776.9,2776.5,3.95]
[1643803454835,0.00239624,2777.9,2776.9,0.9001]
[1643803455039,0.00239624,2777.9,2777.7,0.012597]
[1643803455234,0.115108,2778.2,2777.9,2.5]
[1643803455448,3.8633,2779.3,2778.1,0.18027]
[1643803455634,0.89412248,2779.0,2778.4,0.34611664]
[1643803455836,1.25136407,2778.9,2778.4,0.523]
[1643803456037,1.25136407,2778.8,2778.4,1.4227]
[1643803456241,2.4438991,2779.2,2778.5,2.0]
[1643803456442,2.4438991,2779.2,2778.6,0.523]
[1643803456635,2.2438991,2779.2,2778.7,0.36017]
[1643803456892,2.2438991,2779.2,2778.6,0.7029]
[1643803456893,0.68145359,2779.0,2778.6,0.7029]
[1643803457082,0.68145359,2779.7,2778.6,0.7029]
[1643803457291,1.26914437,2779.7,2778.6,0.7029]
[1643803457683,0.94548836,2779.6,2778.8,0.68342429]
[1643803457884,1.26914437,2779.5,2778.8,0.68342429]
[1643803458183,1.26914437,2779.4,2778.9,0.523]
[1643803458383,0.00084291,2779.9,2778.9,0.523]
[1643803458590,1.26694726,2779.7,2778.9,0.523]
[1643803459282,0.79722337,2779.5,2778.9,2.42121362]
[1643803459484,0.79722337,2779.5,2778.9,0.523]
[1643803460736,0.79722337,2779.5,2779.0,2.0]
[1643803460929,0.40878297,2779.9,2779.0,2.0]
[1643803460930,0.00084291,2779.9,2779.0,2.0]
[1643803461139,1.26289463,2779.7,2779.1,0.523]
[1643803461338,1.26289463,2779.7,2779.2,0.523]
[1643803461541,0.00084291,2779.9,2779.2,0.523]
[1643803461738,1.26799658,2779.7,2779.2,0.523]
[1643803461935,0.77597315,2779.5,2779.2,0.523]
[1643803462344,0.77597315,2779.5,2778.8,0.7027]
[1643803462736,0.03065609,2778.9,2778.8,0.523]
[1643803463137,0.03065609,2778.9,2778.6,0.1799]
[1643803463337,0.03065609,2778.9,2778.5,0.24984844]
[1643803463338,0.03065609,2778.9,2778.5,0.42974844]
[1643803464137,0.03065609,2778.9,2778.7,0.73304512]
[1643803464372,0.03065609,2778.9,2778.8,6.38027]
[1643803464968,0.03065609,2778.9,2778.8,0.54616362]
[1643803465173,0.03065609,2778.9,2778.8,0.34648568]
[1643803466568,2.2226128,2779.8,2778.8,0.34648568]
[1643803466778,2.2226128,2779.8,2778.9,1.42239]
[1643803466986,4.14315573,2779.8,2779.0,0.523]
[1643803467174,4.13758344,2779.8,2779.0,0.523]
[1643803467776,2.59960242,2779.8,2778.7,0.50791298]
[1643803468023,2.1726128,2779.8,2778.7,1.40738298]
[1643803468228,2.1726128,2779.8,2778.7,1.07917]
[1643803468428,2.1726128,2779.8,2778.8,0.8112956]
[1643803469228,2.1726128,2779.8,2778.9,0.32902604]
[1643803469429,2.1726128,2779.8,2778.8,0.8112956]
[1643803471533,0.92951599,2779.4,2778.7,1.07917]
[1643803472176,2.0,2779.3,2778.6,0.1799]
[1643803472374,2.0,2779.3,2778.4,2.04893]
[1643803472375,2.0,2779.3,2778.4,0.25]
[1643803472573,0.78344504,2778.8,2778.2,0.1799]
[1643803472785,0.78344504,2778.8,2778.1,0.17983]
[1643803473377,0.78344504,2778.8,2778.2,7.0]
[1643803474980,7.51279999,2779.7,2778.2,7.0]
[1643803474981,2.17344789,2779.8,2778.4,0.3]
[1643803475187,2.17344789,2779.8,2779.1,0.5]
[1643803475622,2.17344789,2779.8,2778.9,0.17983]
[1643803476025,2.92990005,2779.8,2779.0,0.79700036]
[1643803477831,2.92990005,2779.8,2778.9,0.17983]
[1643803478025,2.92990005,2779.8,2778.8,0.523]
[1643803478442,2.92990005,2779.8,2778.7,2.15082462]
[1643803478443,2.92990005,2779.8,2778.7,0.1797]
[1643803478838,2.92990005,2779.8,2778.5,4.18997268]
[1643803478839,2.92990005,2779.8,2778.6,0.1799]
[1643803479031,0.93712275,2779.3,2778.6,0.1799]
[1643803479478,1.2312,2779.7,2778.6,0.1799]
[1643803479979,1.2312,2779.7,2778.6,2.1109536]
[1643803480171,0.3337752,2779.4,2778.6,2.1109536]
[1643803480377,0.3337752,2779.4,2778.6,0.1799]
[1643803480571,0.3337752,2779.4,2778.6,2.08885522]
[1643803480780,1.2312,2779.7,2778.6,2.11013693]
[1643803480980,1.2312,2779.7,2778.6,2.07294219]
[1643803481172,1.2312,2779.7,2778.6,2.07587315]
[1643803481373,0.79265186,2779.3,2778.6,2.12172509]
[1643803481575,0.79265186,2779.3,2778.6,0.1799]
[1643803481772,0.79265186,2779.3,2778.6,2.10743346]
[1643803481976,1.2312,2779.7,2778.6,2.11115239]
[1643803482181,1.2312,2779.7,2778.6,3.01067239]
[1643803482374,1.2312,2779.7,2778.6,3.91014239]